bitfinex/quotes_BTCUSD_20250225
["timestamp","ask_amount","ask_price","bid_price","bid_amount"]
[1740458961910,0.01800278,92265.0,92254.0,0.00151728]
[1740458962122,0.01900278,92265.0,92254.0,0.00151728]
[1740458962531,0.01985118,92265.0,92253.0,0.0759]
[1740458962955,0.01985118,92265.0,92254.0,0.00151729]
[1740458963194,0.01985118,92265.0,92253.0,0.0759]
[1740458963540,0.01885118,92265.0,92253.0,0.0759]
[1740458963855,0.03387197,92264.0,92253.0,0.0759]
[1740458964311,0.00608764,92263.0,92253.0,0.0759]
[1740458964488,0.03387197,92262.0,92253.0,0.0759]
[1740458965278,0.03487197,92264.0,92253.0,0.0759]
[1740458965653,0.03387197,92263.0,92254.0,0.00151733]
[1740458966031,0.03387197,92264.0,92254.0,0.00151733]
[1740458966630,0.00679623,92262.0,92254.0,0.00151733]
[1740458967001,0.00679623,92262.0,92255.0,0.0779]
[1740458967207,0.00679623,92262.0,92259.0,0.01454085]
[1740458967412,0.00679623,92262.0,92261.0,0.09244085]
[1740458968172,0.0008484,92265.0,92261.0,0.09244085]
[1740458968408,0.0008484,92265.0,92262.0,0.00151708]
[1740458969260,0.0008484,92265.0,92264.0,0.14314085]
[1740458969478,0.0008484,92265.0,92264.0,0.16107756]
[1740458969706,0.017851,92284.0,92264.0,0.03247756]
[1740458969883,0.0016972,92312.0,92268.0,0.01454085]
[1740458970122,0.017851,92305.0,92270.0,0.01454085]
[1740458970324,0.0016972,92312.0,92272.0,0.01454085]
[1740458970535,0.032614,92309.0,92275.0,0.1276]
[1740458970750,0.032614,92309.0,92278.0,0.01454085]
[1740458970986,0.00835008,92311.0,92280.0,0.01454085]
[1740458971217,0.00835008,92311.0,92282.0,0.01454085]
[1740458971422,0.0016972,92312.0,92282.0,0.14624085]
[1740458971615,0.0016972,92312.0,92282.0,0.14775742]
[1740458972628,0.0008481,92295.0,92282.0,0.14775742]
[1740458973412,0.0008481,92295.0,92282.0,0.49984207]
[1740458973620,0.0008481,92295.0,92285.0,0.01454085]
[1740458973797,0.0008481,92295.0,92289.0,0.1297]
[1740458973978,0.0008481,92295.0,92287.0,0.02]
[1740458974180,0.0008481,92295.0,92286.0,0.48378478]
[1740458974181,0.0008481,92295.0,92291.0,0.01454085]
[1740458974465,0.0008481,92295.0,92292.0,0.08121636]
[1740458974595,0.0018481,92295.0,92294.0,0.0763]
[1740458974793,0.0018481,92295.0,92294.0,0.07781646]
[1740458975206,0.0028481,92295.0,92294.0,0.07781646]
[1740458975851,0.0018481,92295.0,92294.0,0.07781646]
[1740458976090,0.0028481,92295.0,92294.0,0.58860096]
[1740458976304,0.0018481,92295.0,92294.0,0.58708478]
[1740458976484,0.0028481,92295.0,92294.0,0.58708478]
[1740458976987,0.0017008,92296.0,92295.0,0.11234085]
[1740458977183,0.0016972,92312.0,92299.0,0.1442]
[1740458977387,0.0016972,92312.0,92299.0,0.14571611]
[1740458978269,0.0016972,92312.0,92299.0,0.12671611]
[1740458978851,0.0016972,92312.0,92299.0,0.13371611]
[1740458979675,0.0016972,92312.0,92299.0,0.61750089]
[1740458980069,0.0016972,92312.0,92299.0,0.62298478]
[1740458987229,0.0016972,92312.0,92299.0,0.64098478]
[1740458987998,0.0016972,92312.0,92299.0,0.64852563]
[1740458988208,0.0016972,92312.0,92307.0,0.018]
[1740458988438,0.00182651,92312.0,92311.0,0.018]
[1740458988644,0.00182651,92312.0,92311.0,0.16095683]
[1740458989595,0.00182651,92312.0,92311.0,0.14295683]
[1740458989796,0.00182651,92312.0,92311.0,0.13869598]
[1740458990090,0.00182651,92312.0,92311.0,0.14569598]
[1740458990299,0.00182651,92312.0,92311.0,0.13869598]
[1740458990503,0.00182651,92312.0,92311.0,0.14569598]
[1740458990712,0.00182651,92312.0,92311.0,0.15269598]
[1740458990916,0.00182651,92312.0,92311.0,0.13869598]
[1740458991121,0.00182651,92312.0,92311.0,0.13541598]
[1740458991323,0.00182651,92312.0,92311.0,0.14241598]
[1740458991830,0.00182651,92312.0,92311.0,0.36791176]
[1740458992036,0.00182651,92312.0,92311.0,0.1409]
[1740458992459,0.00182651,92312.0,92311.0,0.1339]
[1740458992630,0.00182651,92312.0,92311.0,0.13541607]
[1740458992881,0.00182651,92312.0,92311.0,0.14241607]
[1740458993957,0.00182651,92312.0,92311.0,0.13541607]
[1740458994131,0.00182651,92312.0,92311.0,0.1409]
[1740458994694,0.00182651,92312.0,92311.0,0.1339]
[1740458994916,0.00182651,92312.0,92311.0,0.1409]
[1740458995333,0.00182651,92312.0,92311.0,0.1339]
[1740458995529,0.00182651,92312.0,92311.0,0.1269]
[1740458995754,0.00182651,92312.0,92311.0,0.1409]
[1740458997229,0.00182651,92312.0,92311.0,0.15499]
[1740458997607,0.00182651,92312.0,92311.0,0.1409]
[1740459004183,0.00182651,92312.0,92311.0,0.14241602]
[1740459004775,0.00182651,92312.0,92311.0,0.17495687]
[1740459004975,0.0016972,92322.0,92314.0,0.148]
[1740459005181,0.0016972,92322.0,92314.0,0.16405686]
[1740459006535,0.0016972,92322.0,92314.0,0.17105686]
[1740459007087,0.0016972,92322.0,92314.0,0.19105686]
[1740459007836,0.0016972,92322.0,92321.0,0.1446]
[1740459008047,0.0016972,92322.0,92321.0,0.16065666]
[1740459010116,0.0016972,92322.0,92321.0,0.17465666]
[1740459011523,0.0016972,92322.0,92321.0,0.18493666]
[1740459012367,0.0016972,92322.0,92321.0,0.17793666]
[1740459012566,0.0016972,92322.0,92321.0,0.18493666]
[1740459013627,0.0016972,92322.0,92321.0,0.17793666]
[1740459013795,0.0016972,92322.0,92321.0,0.17314085]
[1740459014003,0.0016972,92322.0,92321.0,0.15842085]
[1740459014235,0.0016972,92322.0,92321.0,0.1336]
[1740459014625,0.0016972,92322.0,92321.0,0.01551599]
[1740459014828,0.0016972,92322.0,92321.0,0.014]
[1740459015025,0.0016972,92322.0,92321.0,0.007]
[1740459015645,0.0016972,92322.0,92321.0,0.00851613]
[1740459015849,0.0016972,92322.0,92321.0,0.01551613]
[1740459016068,0.0016972,92322.0,92321.0,0.01977955]
[1740459016192,0.0016972,92322.0,92321.0,0.10217955]
[1740459016638,0.0016972,92322.0,92321.0,0.00151613]
[1740459016841,0.0016972,92322.0,92321.0,0.01551613]
[1740459017057,0.0016972,92322.0,92321.0,0.014]
[1740459017213,0.0016972,92322.0,92321.0,0.007]
[1740459017632,0.0016972,92322.0,92321.0,0.014]
[1740459018042,0.0016972,92322.0,92321.0,0.007]
[1740459018455,0.0016972,92322.0,92321.0,0.014]
[1740459018766,0.0016972,92322.0,92321.0,0.007]
[1740459018973,0.0016972,92322.0,92321.0,0.014]
[1740459019170,0.0016972,92322.0,92321.0,0.007]
[1740459019582,0.0016972,92322.0,92321.0,0.014]
[1740459019753,0.0016972,92322.0,92309.0,0.00151628]
[1740459019957,0.0016972,92322.0,92321.0,0.007]
[1740459020167,0.0016972,92322.0,92321.0,0.014]
[1740459020386,0.0016972,92322.0,92321.0,0.007]
[1740459021031,0.0016972,92322.0,92309.0,0.00151626]
[1740459021207,0.0016972,92322.0,92321.0,0.007]
[1740459021409,0.0036972,92322.0,92321.0,0.007]
[1740459021811,0.002,92309.0,92299.0,0.0016976]
[1740459022016,0.00269725,92322.0,92300.0,0.00182691]
[1740459022017,0.002,92308.0,92300.0,0.00182691]
[1740459022802,0.002,92308.0,92301.0,0.00151655]
[1740459023619,0.002,92314.0,92301.0,0.00151655]
[1740459023819,0.002,92319.0,92300.0,0.00682691]
[1740459024024,0.0016972,92322.0,92300.0,0.00682691]
[1740459024232,0.0016972,92322.0,92301.0,0.0858]
[1740459024434,0.0016972,92322.0,92302.0,0.05634868]
[1740459024640,0.0016972,92322.0,92302.0,0.05634867]
[1740459025899,0.00969365,92322.0,92302.0,0.05634867]
[1740459026117,0.00969365,92322.0,92302.0,0.04691622]
[1740459026334,0.0026972,92322.0,92302.0,0.04691622]
[1740459026525,0.0026972,92322.0,92302.0,0.04791622]
[1740459026738,0.0016972,92322.0,92302.0,0.04691622]
[1740459027262,0.0016972,92322.0,92302.0,0.04791622]
[1740459027263,0.0026972,92322.0,92302.0,0.04791622]
[1740459027521,0.0016972,92322.0,92303.0,0.01028]
[1740459027712,0.002,92315.0,92304.0,0.00151636]
[1740459027843,0.002,92315.0,92300.0,0.00182691]
[1740459028043,0.002,92315.0,92301.0,0.00151643]
[1740459028568,0.002,92315.0,92302.0,0.001]
[1740459028728,0.002,92315.0,92303.0,0.00151643]
[1740459028927,0.0091,92328.0,92303.0,0.00151643]
[1740459028928,0.08656557,92325.0,92303.0,0.00151643]
[1740459029918,0.08656557,92325.0,92304.0,0.00151643]
[1740459030282,0.08656557,92325.0,92301.0,0.00151643]
[1740459030476,0.001,92322.0,92301.0,0.00151643]
[1740459031393,0.00828499,92311.0,92301.0,0.00151643]
[1740459031613,0.00828499,92311.0,92302.0,0.00470331]
[1740459031791,0.001,92322.0,92302.0,0.00470331]
[1740459031990,0.15,92344.0,92303.0,0.00151638]
[1740459032197,0.08656557,92325.0,92303.0,0.00151638]
[1740459032400,0.00834285,92314.0,92300.0,0.00182691]
[1740459032642,0.00834285,92314.0,92304.0,0.00437463]
[1740459032847,0.00834285,92314.0,92304.0,0.00151638]
[1740459033066,0.00834285,92314.0,92305.0,0.00437463]
[1740459033268,0.00834285,92314.0,92306.0,0.00151634]
[1740459033470,0.00834285,92314.0,92307.0,0.0796]
[1740459033678,0.00834285,92314.0,92308.0,0.00151631]
[1740459034290,0.00834285,92314.0,92309.0,0.00437085]
[1740459034505,0.00834285,92314.0,92310.0,0.00151629]
[1740459034704,0.00834285,92314.0,92311.0,0.048]
[1740459034906,0.00834285,92314.0,92312.0,0.00151626]
[1740459035129,0.00834285,92314.0,92312.0,0.00588711]
[1740459035341,0.00834285,92314.0,92312.0,0.00151626]
[1740459035543,0.00834285,92314.0,92313.0,0.00437085]
[1740459036858,0.00834285,92314.0,92313.0,0.00737085]
[1740459038198,0.00834285,92314.0,92313.0,0.00437085]
[1740459038417,0.00834285,92314.0,92311.0,0.04951628]
[1740459038628,0.00834285,92314.0,92313.0,0.01137085]
[1740459038845,0.00834285,92314.0,92313.0,0.007]
[1740459039103,0.00834285,92314.0,92313.0,0.01137085]
[1740459039302,0.00834285,92314.0,92313.0,0.00437085]
[1740459039621,0.00834285,92314.0,92311.0,0.055]
[1740459039821,0.00834285,92314.0,92313.0,0.00437085]
[1740459040033,0.00834285,92314.0,92311.0,0.04951629]
[1740459040239,0.00834285,92314.0,92313.0,0.00837085]
[1740459040465,0.00834285,92314.0,92313.0,0.00551626]
[1740459040709,0.00834285,92314.0,92313.0,0.00988711]
[1740459041401,0.00834285,92314.0,92313.0,0.00737085]
[1740459041650,0.007915,92315.0,92313.0,0.00737085]
[1740459041857,0.007915,92315.0,92314.0,0.00151627]
[1740459042414,0.007915,92315.0,92314.0,0.00588712]
[1740459043273,0.007915,92315.0,92314.0,0.08778712]
[1740459044581,0.007915,92315.0,92314.0,0.09278712]
[1740459045009,0.007915,92315.0,92314.0,0.09878712]
[1740459047433,0.0008483,92351.0,92314.0,0.09878712]
[1740459047434,0.15,92344.0,92314.0,0.09878712]
[1740459047792,0.00830338,92320.0,92314.0,0.09878712]
[1740459048356,0.00830338,92320.0,92314.0,0.08778712]
[1740459049216,0.00830338,92320.0,92314.0,0.09178712]
[1740459049423,0.00830338,92320.0,92314.0,0.08778712]
[1740459049618,0.00830338,92320.0,92314.0,0.09078712]
[1740459049815,0.00830338,92320.0,92314.0,0.09478712]
[1740459050046,0.00830338,92320.0,92314.0,0.08778712]
[1740459050454,0.00830338,92320.0,92314.0,0.10136583]
[1740459050573,0.00830338,92320.0,92314.0,0.08778712]
[1740459051446,0.00830338,92320.0,92314.0,0.09578712]
[1740459057660,0.08656557,92346.0,92314.0,0.09578707]
[1740459057910,0.03388023,92345.0,92317.0,0.09014085]
[1740459058254,0.03388023,92344.0,92320.0,0.01454085]
[1740459058431,0.03388023,92354.0,92322.0,0.01454085]
[1740459058665,0.01642338,92353.0,92323.0,0.00151591]
[1740459058854,0.01642338,92353.0,92325.0,0.0822]
[1740459059139,0.002,92346.0,92326.0,0.01179592]
[1740459059371,0.001,92346.0,92326.0,0.01179592]
[1740459059567,0.001,92346.0,92327.0,0.00479165]
[1740459059802,0.001,92346.0,92328.0,0.07721592]
[1740459060004,0.00828318,92338.0,92328.0,0.09242876]
[1740459060175,0.00828318,92338.0,92328.0,0.09720387]
[1740459060815,0.002,92354.0,92330.0,0.0498]
[1740459061025,0.00804363,92346.0,92333.0,0.0757]
[1740459061254,0.00804363,92346.0,92335.0,0.0757]
[1740459061457,0.00804363,92346.0,92336.0,0.00151579]
[1740459061680,0.00804363,92346.0,92336.0,0.00626457]
[1740459062386,0.00804363,92346.0,92336.0,0.00474878]
[1740459062588,0.00804363,92346.0,92337.0,0.00151579]
[1740459063042,0.00804363,92346.0,92338.0,0.00474878]
[1740459063243,0.00804363,92346.0,92339.0,0.00151578]
[1740459063460,0.00012931,92354.0,92339.0,0.00151578]
[1740459063672,0.00012931,92354.0,92340.0,0.00474878]
[1740459063889,0.00012931,92354.0,92341.0,0.00151577]
[1740459064315,0.00012931,92354.0,92342.0,0.00395731]
[1740459064521,0.00012931,92354.0,92343.0,0.00151578]
[1740459064735,0.00112931,92354.0,92338.0,0.00151577]
[1740459064947,0.00112931,92354.0,92344.0,0.00395731]
[1740459065152,0.00012931,92354.0,92335.0,0.07721578]
[1740459065363,0.00012931,92354.0,92336.0,0.00151578]
[1740459065572,0.00112931,92354.0,92336.0,0.00626456]
[1740459065787,0.00811084,92347.0,92336.0,0.01896614]
[1740459065977,0.00811084,92347.0,92336.0,0.00626456]
[1740459066151,0.00112931,92354.0,92336.0,0.00626456]
[1740459066152,0.00112931,92354.0,92337.0,0.0754]
[1740459066359,0.00112931,92354.0,92340.0,0.0754]
[1740459066567,0.00112931,92354.0,92341.0,0.07691565]
[1740459066768,0.00112931,92354.0,92341.0,0.08087296]
[1740459067376,0.00012931,92354.0,92341.0,0.08087296]
[1740459067571,0.00112931,92354.0,92341.0,0.08087296]
[1740459068024,0.00927781,92354.0,92341.0,0.08087296]
[1740459068192,0.00827781,92354.0,92341.0,0.08087296]
[1740459068444,0.00827781,92354.0,92341.0,0.08387296]
[1740459068650,0.00827781,92354.0,92341.0,0.08787296]
[1740459068827,0.00827781,92354.0,92341.0,0.10112026]
[1740459069230,0.00012931,92354.0,92342.0,0.09454085]
[1740459069527,0.00012931,92354.0,92343.0,0.00151563]
[1740459069702,0.00012931,92354.0,92344.0,0.08446386]
[1740459069916,0.00012931,92354.0,92345.0,0.00151568]
[1740459070115,0.00012931,92354.0,92345.0,0.00625049]
[1740459070532,0.00012931,92354.0,92345.0,0.00473481]
[1740459071386,0.00012931,92354.0,92346.0,0.00151569]
[1740459071709,0.00012931,92354.0,92347.0,0.0804]
[1740459071901,0.00012931,92354.0,92348.0,0.05693016]
[1740459072190,0.00012931,92354.0,92349.0,0.01454085]
[1740459072360,0.00012931,92354.0,92353.0,0.01454085]
[1740459072565,0.00012931,92354.0,92353.0,0.14145634]
[1740459072767,0.00012931,92354.0,92353.0,0.14612223]
[1740459073789,0.00012931,92354.0,92353.0,0.16612223]
[1740459074013,0.00012931,92354.0,92353.0,0.17212223]
[1740459074331,0.0008482,92365.0,92357.0,0.02]
[1740459074471,0.04201154,92365.0,92362.0,0.01454085]
[1740459074659,0.0008482,92365.0,92364.0,0.14054085]
[1740459075086,0.0008482,92365.0,92364.0,0.14517735]
[1740459075894,0.0008482,92365.0,92364.0,0.14669243]
[1740459076224,0.0008482,92365.0,92364.0,0.15664693]
[1740459076559,0.0008482,92365.0,92364.0,0.15474918]
[1740459076964,0.0008482,92365.0,92364.0,0.17664693]
[1740459077166,0.0008482,92365.0,92364.0,0.17513185]
[1740459077371,0.0008482,92365.0,92364.0,0.08499263]
[1740459077789,0.0008482,92365.0,92364.0,0.07799263]
[1740459077962,0.0008482,92365.0,92364.0,0.08127263]
[1740459078223,0.0008482,92365.0,92364.0,0.08637488]
[1740459078396,0.0008482,92365.0,92364.0,0.09526535]
[1740459078601,0.0008482,92365.0,92364.0,0.08826535]
[1740459078803,0.0008482,92365.0,92364.0,0.09779188]
[1740459079007,0.0008482,92365.0,92364.0,0.10479188]
[1740459079411,0.0008482,92365.0,92364.0,0.11233273]
[1740459079748,0.0008482,92365.0,92364.0,0.08829119]
[1740459079948,0.0008482,92365.0,92364.0,0.08091049]
[1740459080203,0.0008482,92365.0,92364.0,0.08791049]
[1740459080439,0.0008482,92365.0,92364.0,0.15521527]
[1740459080646,0.0008482,92365.0,92364.0,0.16739304]
[1740459080832,0.0008482,92365.0,92364.0,0.1689083]
[1740459080979,0.0008482,92365.0,92364.0,0.16739304]
[1740459081360,0.0008482,92365.0,92364.0,0.16039304]
[1740459081974,0.0008482,92365.0,92364.0,0.16739304]
[1740459082155,0.0008482,92365.0,92364.0,0.16039304]
[1740459082369,0.0008482,92365.0,92364.0,0.15285219]
[1740459082749,0.0008482,92365.0,92364.0,0.14585219]
[1740459083017,0.0008482,92365.0,92364.0,0.13557219]
[1740459083217,0.0008482,92365.0,92364.0,0.14257219]
[1740459083709,0.0008482,92365.0,92364.0,0.01458557]
[1740459083913,0.0008482,92365.0,92364.0,0.02158557]
[1740459084615,0.0008482,92365.0,92364.0,0.00758557]
[1740459084822,0.0008482,92365.0,92364.0,0.007]
[1740459085031,0.0008482,92365.0,92364.0,0.014]
[1740459085206,0.0008482,92365.0,92364.0,0.007]
[1740459085402,0.0008482,92365.0,92364.0,0.01971528]
[1740459086166,0.0008482,92365.0,92364.0,0.01271528]
[1740459086291,0.0008482,92365.0,92364.0,0.01971528]
[1740459086701,0.0008482,92365.0,92364.0,0.10031528]
[1740459086954,0.0008482,92365.0,92364.0,0.15644681]
[1740459087084,0.0008482,92365.0,92364.0,0.14641528]
[1740459087728,0.0008482,92365.0,92364.0,0.13941528]
[1740459087959,0.0008482,92365.0,92364.0,0.13241528]
[1740459088140,0.0008482,92365.0,92364.0,0.13941528]
[1740459089165,0.0008482,92365.0,92364.0,0.16035681]
[1740459089379,0.0008482,92365.0,92364.0,0.14641528]
[1740459090956,0.0008482,92365.0,92364.0,0.14134142]
[1740459091319,0.0008482,92365.0,92364.0,0.13243056]
[1740459091657,0.0008482,92365.0,92364.0,0.13943056]
[1740459092323,0.0008482,92365.0,92364.0,0.14643056]
[1740459093253,0.0008482,92365.0,92364.0,0.06583056]
[1740459094104,0.0008482,92365.0,92364.0,0.06052696]
[1740459094317,0.0008482,92365.0,92364.0,0.05352696]
[1740459094733,0.0008482,92365.0,92364.0,0.06052696]
[1740459095561,0.0008482,92365.0,92364.0,0.02142696]
[1740459095967,0.0008482,92365.0,92364.0,0.01442696]
[1740459096409,0.0008482,92365.0,92364.0,0.02142696]
[1740459097335,0.0008482,92365.0,92364.0,0.01442696]
[1740459097546,0.0008482,92365.0,92364.0,0.00742696]
[1740459097755,0.0008482,92365.0,92364.0,0.01442696]
[1740459099114,0.0008482,92365.0,92364.0,0.00742696]
[1740459099436,0.0008482,92365.0,92364.0,0.02142696]
[1740459099848,0.0008482,92365.0,92364.0,0.01442696]
[1740459100617,0.0008482,92365.0,92364.0,0.02142696]
[1740459101123,0.0008482,92365.0,92364.0,0.0156964]
[1740459102143,0.0008482,92365.0,92364.0,0.0016964]
[1740459102528,0.0008482,92365.0,92364.0,0.0156964]
[1740459102924,0.0008482,92365.0,92364.0,0.02141132]
[1740459106850,0.0008482,92365.0,92364.0,0.15281132]
[1740459107816,0.0008482,92365.0,92364.0,0.14581132]
[1740459107959,0.0008482,92365.0,92364.0,0.15281132]
[1740459108362,0.0008482,92365.0,92364.0,0.13881132]
[1740459108561,0.0008482,92365.0,92364.0,0.15281132]
[1740459109184,0.0008482,92365.0,92364.0,0.14581132]
[1740459109378,0.0008482,92365.0,92364.0,0.15281132]
[1740459109624,0.0008482,92365.0,92364.0,0.16809245]
[1740459109775,0.0008482,92365.0,92364.0,0.15281132]
[1740459111371,0.0008482,92365.0,92364.0,0.15594865]
[1740459111727,0.0008482,92365.0,92364.0,0.16446384]
[1740459111926,0.0008482,92365.0,92364.0,0.15746384]
[1740459112256,0.0008482,92365.0,92364.0,0.16446384]
[1740459115184,0.0008482,92365.0,92364.0,0.15432651]
[1740459115847,0.0008482,92365.0,92364.0,0.15281132]
[1740459116057,0.0008482,92365.0,92364.0,0.02141132]
[1740459117070,0.0008482,92365.0,92364.0,0.02292674]
[1740459117506,0.0008482,92365.0,92364.0,0.00892674]
[1740459117708,0.0008482,92365.0,92364.0,0.01592674]
[1740459117913,0.0008482,92365.0,92364.0,0.02292674]
[1740459118327,0.0008482,92365.0,92364.0,0.01592674]
[1740459118533,0.0008482,92365.0,92364.0,0.02141132]
[1740459120694,0.0008482,92365.0,92364.0,0.00741132]
[1740459120901,0.0008482,92365.0,92364.0,0.02141132]
[1740459124120,0.0008482,92365.0,92364.0,0.01441132]
[1740459124319,0.0008482,92365.0,92364.0,0.00741132]
[1740459124642,0.0008482,92365.0,92364.0,0.01441132]
[1740459125044,0.0008482,92365.0,92364.0,0.02141132]
[1740459126563,0.0008482,92365.0,92364.0,0.0156964]
[1740459131158,0.0008482,92365.0,92364.0,0.07313155]
[1740459131365,0.0008482,92365.0,92364.0,0.0623964]
[1740459131568,0.0008482,92365.0,92364.0,0.14614297]
[1740459132742,0.15,92397.0,92365.0,0.0767]
[1740459132943,0.00043087,92386.0,92367.0,0.0767]
[1740459133141,0.00043087,92386.0,92368.0,0.01175526]
[1740459133527,0.00043087,92386.0,92369.0,0.00572305]
[1740459133729,0.00043087,92386.0,92371.0,0.0831]
[1740459133978,0.00043087,92386.0,92372.0,0.00151527]
[1740459134285,0.00834033,92378.0,92372.0,0.01818728]
[1740459134698,0.08656557,92404.0,92372.0,0.01818728]
[1740459134911,0.01697764,92385.0,92372.0,0.01818728]
[1740459135112,0.00808403,92383.0,92372.0,0.01818728]
[1740459135401,0.00808403,92383.0,92372.0,0.02218728]
[1740459135611,0.00821321,92383.0,92372.0,0.01818728]
[1740459135816,0.00821321,92383.0,92373.0,0.01175273]
[1740459135967,0.00821321,92383.0,92374.0,0.00151523]
[1740459136169,0.00821321,92383.0,92374.0,0.00720046]
[1740459137132,0.00821321,92383.0,92374.0,0.01120046]
[1740459137419,0.00821321,92383.0,92374.0,0.00968523]
[1740459138000,0.00821321,92383.0,92375.0,0.00151528]
[1740459138237,0.00821321,92383.0,92376.0,0.00568732]
[1740459138446,0.00821321,92383.0,92377.0,0.00151523]
[1740459138643,0.00821321,92383.0,92378.0,0.0473]
[1740459138863,0.00821321,92383.0,92379.0,0.00151523]
[1740459139287,0.00821321,92383.0,92380.0,0.00568732]
[1740459139515,0.00821321,92383.0,92381.0,0.00151523]
[1740459139719,0.00821321,92383.0,92381.0,0.00568732]
[1740459139907,0.00821321,92383.0,92378.0,0.0473]
[1740459140093,0.00821321,92383.0,92382.0,0.00454985]
[1740459140306,0.00821321,92383.0,92374.0,0.0016968]
[1740459140459,0.00821321,92383.0,92382.0,0.00454915]
[1740459140678,0.00821321,92383.0,92379.0,0.004]
[1740459140872,0.00821321,92383.0,92382.0,0.00568644]
[1740459141056,0.00821321,92383.0,92374.0,0.0016968]
[1740459141248,0.00821321,92383.0,92382.0,0.00854915]
[1740459141449,0.00821321,92383.0,92382.0,0.004]
[1740459141649,0.00821321,92383.0,92382.0,0.00854915]
[1740459142116,0.00821321,92383.0,92382.0,0.01469219]
[1740459142526,0.00821321,92383.0,92382.0,0.01069219]
[1740459142786,0.00821321,92383.0,92382.0,0.01469219]
[1740459144500,0.00821321,92383.0,92382.0,0.00969219]
[1740459144702,0.00821321,92383.0,92382.0,0.01469219]
[1740459145103,0.00821321,92383.0,92382.0,0.00969219]
[1740459145318,0.00821321,92383.0,92382.0,0.01469219]
[1740459145503,0.00821321,92383.0,92382.0,0.01069219]
[1740459145950,0.00821321,92383.0,92382.0,0.01469219]
[1740459146335,0.00821321,92383.0,92382.0,0.01069219]
[1740459146539,0.00821321,92383.0,92382.0,0.01469219]
[1740459153331,0.08656557,92415.0,92382.0,0.01469219]
[1740459153332,0.15,92414.0,92382.0,0.01469219]
[1740459153537,0.03385363,92413.0,92382.0,0.01469219]
[1740459153766,0.01697823,92412.0,92382.0,0.009]
[1740459153913,0.03385363,92411.0,92382.0,0.009]
[1740459154117,0.03385363,92410.0,92382.0,0.009]
[1740459154318,0.02515722,92409.0,92382.0,0.009]
[1740459154566,0.02515722,92409.0,92382.0,0.004]
[1740459154739,0.08656557,92405.0,92374.0,0.0016968]
[1740459154963,0.03385363,92404.0,92382.0,0.001]
[1740459155374,0.03385363,92404.0,92374.0,0.0016968]
[1740459155375,0.18385363,92404.0,92374.0,0.0016968]
[1740459155579,0.00820715,92383.0,92374.0,0.0016968]
[1740459155838,0.00820715,92383.0,92375.0,0.00569519]
[1740459156011,0.00820715,92383.0,92375.0,0.00399839]
[1740459156248,0.00820715,92383.0,92375.0,0.00731079]
[1740459156732,0.00820715,92383.0,92375.0,0.00774166]
[1740459157997,0.00820715,92383.0,92375.0,0.00974166]
[1740459158235,0.01697899,92382.0,92375.0,0.01474166]
[1740459158636,0.01697899,92382.0,92375.0,0.00974166]
[1740459159025,0.01697899,92382.0,92375.0,0.01074166]
[1740459159683,0.01697899,92382.0,92375.0,0.00974166]
[1740459159837,0.01697899,92382.0,92375.0,0.01174166]
[1740459160366,0.01697899,92382.0,92375.0,0.00974166]
[1740459160519,0.01697899,92382.0,92375.0,0.01374166]
[1740459162000,0.01697899,92382.0,92376.0,0.00612326]
[1740459162204,0.01697899,92382.0,92376.0,0.00763859]
[1740459162405,0.01697899,92382.0,92376.0,0.00612326]
[1740459163170,0.01697899,92382.0,92376.0,0.00812326]
[1740459163590,0.01697899,92382.0,92376.0,0.01112326]
[1740459166739,0.01669899,92382.0,92376.0,0.01112326]
[1740459171202,0.01669899,92382.0,92376.0,0.01263865]
[1740459172621,0.01454085,92413.0,92376.0,0.01263865]
[1740459172784,0.06337099,92412.0,92376.0,0.01112326]
[1740459172998,0.03387596,92411.0,92376.0,0.01112326]
[1740459173450,0.03387596,92411.0,92376.0,0.00812326]
[1740459173660,0.03387596,92411.0,92376.0,0.00912326]
[1740459173886,0.03387596,92411.0,92376.0,0.00812326]
[1740459174134,0.03437804,92410.0,92376.0,0.00812326]
[1740459174445,0.03387596,92409.0,92376.0,0.00712326]
[1740459174858,0.03387596,92409.0,92376.0,0.00812326]
[1740459175205,0.03387596,92409.0,92376.0,0.00782066]
[1740459175414,0.00809634,92392.0,92376.0,0.00782066]
[1740459175617,0.03387596,92391.0,92376.0,0.00882066]
[1740459176231,0.03387596,92391.0,92376.0,0.00782066]
[1740459176441,0.03387596,92391.0,92376.0,0.00882066]
[1740459176850,0.03387596,92391.0,92376.0,0.00782066]
[1740459177214,0.01697877,92388.0,92376.0,0.00782066]
[1740459177510,0.03977107,92387.0,92376.0,0.00782066]
[1740459177710,0.03387596,92386.0,92376.0,0.00782066]
[1740459180193,0.03387596,92386.0,92376.0,0.00882066]
[1740459180608,0.03387596,92386.0,92376.0,0.00782066]
[1740459180852,0.03387596,92386.0,92376.0,0.00982066]
[1740459181079,0.00648462,92385.0,92376.0,0.00982066]
[1740459181296,0.03387596,92384.0,92376.0,0.00982066]
[1740459181501,0.03387596,92384.0,92376.0,0.01182066]
[1740459182242,0.03387596,92384.0,92376.0,0.00782066]
[1740459182823,0.03387596,92384.0,92376.0,0.00882066]
[1740459183617,0.03387596,92384.0,92376.0,0.01082066]
[1740459184035,0.01903606,92383.0,92376.0,0.01082066]
[1740459184218,0.03387596,92382.0,92376.0,0.0046974]
[1740459184421,0.03387596,92382.0,92377.0,0.00611471]
[1740459184625,0.03387596,92382.0,92376.0,0.0036974]
[1740459184824,0.03387596,92382.0,92378.0,0.0061765]
[1740459185024,0.00663966,92381.0,92376.0,0.0026974]
[1740459185286,0.03387596,92380.0,92376.0,0.0026974]
[1740459185586,0.03387596,92380.0,92376.0,0.0016974]
[1740459185797,0.03387596,92380.0,92377.0,0.001]
[1740459186094,0.0508573,92380.0,92377.0,0.001]
[1740459186286,0.03387596,92379.0,92377.0,0.001]
[1740459186692,0.00699816,92378.0,92377.0,0.001]
[1740459186927,0.04087412,92378.0,92377.0,0.001]
[1740459187533,0.04087412,92378.0,92376.0,0.0016974]
[1740459187657,0.03387596,92377.0,92376.0,0.0016974]
[1740459187858,0.03387596,92377.0,92376.0,0.0026974]
[1740459188173,0.04086151,92377.0,92376.0,0.0026974]
[1740459188368,0.04086151,92377.0,92376.0,0.0016974]
[1740459188828,0.04286151,92377.0,92376.0,0.0016974]
[1740459189633,0.04686151,92377.0,92376.0,0.0016974]
[1740459189771,0.04686151,92377.0,92360.0,0.0806]
[1740459189975,0.00822085,92364.0,92353.0,0.0831]
[1740459190183,0.03387596,92363.0,92346.0,0.0831]
[1740459190389,0.0472,92362.0,92337.0,0.3224]
[1740459190589,0.06238564,92361.0,92337.0,0.3224]
[1740459190796,0.0472,92362.0,92337.0,0.3224]
[1740459190797,0.03387596,92360.0,92337.0,0.3224]
[1740459190994,0.03387596,92361.0,92337.0,0.3224]
[1740459191229,0.03387596,92360.0,92337.0,0.3224]
[1740459191429,0.03387596,92361.0,92337.0,0.3224]
[1740459191633,0.03387596,92360.0,92337.0,0.3224]
[1740459191832,0.02950968,92360.0,92337.0,0.3224]